fUSD/lending_fUSD_20260329
["ID","MTS","AMOUNT","RATE_DAILY","PERIOD"]
[419060058,1774821046858,-151.0,0.00014153,2]
[419060059,1774821046867,-500.0,0.00014153,2]
[419060060,1774821046876,-326.9388543,0.00014153,2]
[419060061,1774821046885,-151.0,0.00014208,2]
[419060062,1774821046894,-500.0,0.00014208,2]
[419060063,1774821046903,-339.03559191,0.00014208,2]
[419060064,1774821046912,-180.0,0.00014221,2]
[419060065,1774821046922,-1000.0,0.00014247,2]
[419060066,1774821046931,-1000.0,0.00014247,2]
[419060067,1774821046940,-1000.0,0.00014247,2]
[419060068,1774821046949,-500.38478146,0.00014247,2]
[419060069,1774821046958,-224.83675979,0.00014247,2]
[419060070,1774821046967,-500.0,0.00014247,2]
[419060071,1774821046976,-500.0,0.00014247,2]
[419060072,1774821046985,-1000.0,0.00014247,2]
[419060073,1774821046994,-685.01158904,0.00014247,2]
[419060074,1774821047003,-1000.0,0.00014247,2]
[419060075,1774821047012,-1000.0,0.00014247,2]
[419060076,1774821047021,-1000.0,0.00014247,2]
[419060077,1774821047030,-1000.0,0.00014247,2]
[419060078,1774821047039,-1000.0,0.00014247,2]
[419060079,1774821047047,-1000.0,0.00014247,2]
[419060080,1774821047056,-500.0,0.00014247,2]
[419060081,1774821047065,-500.0,0.00014247,2]
[419060082,1774821047074,-1000.0,0.00014247,2]
[419060083,1774821047083,-1000.0,0.00014247,2]
[419060084,1774821047093,-1000.0,0.00014247,2]
[419060085,1774821047101,-784.86,0.00014247,2]
[419060086,1774821047110,-3000.0,0.0001426,2]
[419060087,1774821047120,-3000.0,0.0001426,2]
[419060088,1774821047129,-151.0,0.00014263,2]
[419060089,1774821047138,-500.0,0.00014263,2]
[419060090,1774821047147,-151.0,0.00014318,2]
[419060091,1774821047156,-500.0,0.00014318,2]
[419060092,1774821047166,-478.92,0.00014325,2]
[419060093,1774821047174,-6152.0,0.00014358,2]
[419060094,1774821047183,-181.08010149,0.00014371,2]
[419060095,1774821047192,-151.0,0.00014371,2]
[419060096,1774821047201,-719.04747942,0.00014371,2]
[419060097,1774821047211,-217.15233878,0.00014371,2]
[419060098,1774821047220,-217.15233878,0.00014371,2]
[419060099,1774821047229,-1481.23780761,0.00014371,2]
[419060100,1774821047238,-200.0,0.00014371,2]
[419060101,1774821047247,-290.26104003,0.00014371,2]
[419060102,1774821047256,-771.01748645,0.00014371,2]
[419060103,1774821047265,-151.0,0.00014373,2]
[419060104,1774821047274,-500.0,0.00014373,2]
[419060105,1774821047283,-3438.59,0.00014384,2]
[419060106,1774821047292,-200.0,0.00014384,2]
[419060107,1774821047300,-1854.55133189,0.00014384,2]
[419060108,1774821047309,-924.0,0.00014417,2]
[419060109,1774821047324,-924.0,0.00014417,2]
[419060110,1774821047333,-924.0,0.00014417,2]
[419060111,1774821047342,-924.0,0.00014417,2]
[419060112,1774821047351,-924.0,0.00014417,2]
[419060113,1774821047360,-924.0,0.00014417,2]
[419060114,1774821047369,-924.0,0.00014417,2]
[419060115,1774821047378,-924.0,0.00014417,2]
[419060116,1774821047387,-924.0,0.00014417,2]
[419060117,1774821047396,-924.0,0.00014417,2]
[419060118,1774821047404,-924.0,0.00014417,2]
[419060119,1774821047413,-924.0,0.00014417,2]
[419060120,1774821047422,-924.0,0.00014417,2]
[419060121,1774821047431,-924.0,0.00014417,2]
[419060122,1774821047440,-924.0,0.00014417,2]
[419060123,1774821047449,-924.0,0.00014417,2]
[419060124,1774821047458,-924.0,0.00014417,2]
[419060125,1774821047467,-924.0,0.00014417,2]
[419060126,1774821047476,-924.0,0.00014417,2]
[419060127,1774821047485,-924.0,0.00014417,2]
[419060128,1774821047495,-924.0,0.00014417,2]
[419060129,1774821047504,-924.0,0.00014417,2]
[419060130,1774821047513,-924.0,0.00014417,2]
[419060131,1774821047522,-924.29149207,0.00014417,2]
[419060132,1774821047531,-500.0,0.00014417,2]
[419060133,1774821047539,-528.23221251,0.00014417,2]
[419060134,1774821047548,-189.38,0.00014449,2]
[419060135,1774821047557,-478.92,0.00014465,2]
[419060136,1774821047566,-888.83,0.00014521,2]
[419060137,1774821047575,-413.71,0.00014561,2]
[419060138,1774821047584,-412.46,0.00014678,30]
[419060139,1774821047593,-6793.18290908,0.00014691,2]
[419060140,1774821047602,-4309.13253679,0.00014691,2]
[419060141,1774821047611,-187.77689859,0.00014744,2]
[419060142,1774821047620,-1227.591469,0.00014769,7]
[419060143,1774821047629,-402.73289396,0.00014795,2]
[419060144,1774821047638,-1500.0,0.00014795,2]
[419060145,1774821047647,-1500.0,0.00014795,2]
[419060146,1774821047656,-507.9229115,0.00014795,2]
[419060147,1774821047664,-911.77279152,0.00014795,2]
[419060148,1774821047674,-1500.0,0.00014795,2]
[419060149,1774821047683,-897.73186186,0.00014795,2]
[419060150,1774821047691,-1500.0,0.00014795,2]
[419060151,1774821047700,-1500.0,0.00014795,2]
[419060152,1774821047709,-1010.44418561,0.00014795,2]
[419060153,1774821047719,-1500.0,0.00014795,2]
[419060154,1774821047728,-1500.0,0.00014795,2]
[419060155,1774821047738,-2000.0,0.000148,2]
[419060156,1774821047747,-7774.0,0.00014862,5]
[419060157,1774821047756,-6217.0,0.00014862,5]
[419060158,1774821047765,-181.48576588,0.000149,2]
[419060159,1774821047774,-21604.97,0.000149,2]
[419060160,1774821047783,-600.0,0.000149,2]
[419060161,1774821047792,-500.0,0.00014904,2]
[419060162,1774821047802,-187.78006525,0.00014919,2]
[419060163,1774821047811,-151.0,0.00014919,2]
[419060164,1774821047820,-745.65223616,0.00014919,2]
[419060165,1774821047829,-225.18697532,0.00014919,2]
[419060166,1774821047838,-225.18697532,0.00014919,2]
[419060167,1774821047847,-1536.04360649,0.00014919,2]
[419060168,1774821047856,-200.0,0.00014919,2]
[419060169,1774821047865,-225.18697532,0.00014919,2]
[419060170,1774821047874,-301.00069851,0.00014919,2]
[419060171,1774821047883,-799.54513345,0.00014919,2]
[419060172,1774821047892,-1000.0,0.00014923,2]
[419060173,1774821047901,-1000.0,0.00014928,2]
[419060174,1774821047910,-233.86267869,0.00014932,2]
[419060175,1774821047919,-952.11597327,0.00014932,2]
[419060176,1774821047928,-191.00236611,0.00014985,2]
[419060177,1774821047937,-421.00233616,0.00014985,2]
[419060178,1774821047946,-528.22419824,0.00014985,2]
[419060179,1774821047955,-300.0,0.00015,2]
[419060180,1774821047964,-3286.49,0.00015,2]
[419060181,1774821047973,-161.4,0.00015,2]
[419060182,1774821047982,-787.61835,0.00015,2]
[419060183,1774821047991,-9606.5105148,0.00015001,2]
[419060184,1774821047999,-1000.0,0.00015009,2]
[419060185,1774821048008,-393.00963669,0.00015015,2]
[419060186,1774821048017,-1000.0,0.00015015,2]
[419060187,1774821048027,-1000.0,0.00015028,2]
[419060188,1774821048038,-1000.0,0.00015034,2]
[419060189,1774821048048,-880.69,0.00015068,2]
[419060190,1774821048058,-900.0,0.00015068,2]
[419060191,1774821048068,-3438.59,0.00015068,2]
[419060192,1774821048079,-1000.0,0.00015095,2]
[419060193,1774821048089,-5055.34,0.000151,2]
[419060194,1774821048100,-4837.98,0.000151,2]
[419060195,1774821048110,-1602.93,0.000151,2]
[419060196,1774821048120,-4373.32,0.000151,2]
[419060197,1774821048130,-2000.0,0.000151,2]
[419060198,1774821048139,-1000.0,0.00015125,2]
[419060199,1774821048148,-718.0,0.00015126,2]
[419060200,1774821048158,-718.0,0.00015132,2]
[419060201,1774821048167,-1000.0,0.00015136,2]
[419060202,1774821048175,-1000.0,0.00015137,2]
[419060203,1774821048185,-1000.0,0.00015168,2]
[419060204,1774821048194,-217.15233878,0.00015192,2]
[419060205,1774821048203,-1000.0,0.00015208,2]
[419060206,1774821048212,-150.0,0.00015223,2]
[419060207,1774821048221,-150.0,0.00015253,2]
[419060208,1774821048230,-1000.0,0.00015263,2]
[419060209,1774821048239,-1000.0,0.00015266,2]
[419060210,1774821048249,-1000.0,0.00015269,2]
[419060211,1774821048258,-30000.0,0.00015286,2]
[419060212,1774821048267,-350.0,0.00015286,3]
[419060213,1774821048276,-1000.0,0.00015295,2]
[419060214,1774821048285,-1000.0,0.00015297,2]
[419060215,1774821048294,-503.64042195,0.000153,2]
[419060216,1774821048303,-791.54926032,0.000153,2]
[419060217,1774821048312,-445.2574,0.000153,2]
[419060218,1774821048322,-1000.0,0.00015301,2]
[419060219,1774821048331,-1000.0,0.00015306,2]
[419060220,1774821048340,-9999.99,0.0001531,2]
[419060221,1774821048350,-1570.0,0.0001532,2]
[419060222,1774821048359,-1000.0,0.0001532,2]
[419060223,1774821048368,-1000.0,0.00015332,2]
[419060224,1774821048378,-1000.0,0.00015333,2]
[419060225,1774821048387,-1000.0,0.00015336,2]
[419060226,1774821048396,-1000.0,0.0001534,2]
[419060227,1774821048405,-880.69,0.00015342,2]
[419060228,1774821048414,-1757.40227596,0.00015342,2]
[419060229,1774821048423,-2000.0,0.00015342,2]
[419060230,1774821048432,-1083.85118063,0.00015342,2]
[419060231,1774821048441,-1000.0,0.00015342,2]
[419060232,1774821048450,-1225.66563804,0.00015342,2]
[419060233,1774821048459,-2000.0,0.00015342,2]
[419060234,1774821048469,-2000.0,0.00015342,2]
[419060235,1774821048478,-1000.0,0.00015349,2]
[419060236,1774821048487,-150.0,0.00015351,2]
[419060237,1774821048496,-718.0,0.00015352,2]
[419060238,1774821048506,-1000.0,0.00015364,2]
[419060239,1774821048515,-150.0,0.00015376,2]
[419060240,1774821048524,-1000.0,0.00015386,2]
[419060241,1774821048534,-2000.0,0.00015387,2]
[419060242,1774821048543,-2000.0,0.00015387,2]
[419060243,1774821048552,-2000.0,0.00015387,2]
[419060244,1774821048562,-2000.0,0.00015387,2]
[419060245,1774821048571,-2000.0,0.00015387,2]
[419060246,1774821048580,-2000.0,0.00015387,2]
[419060247,1774821048589,-2000.0,0.00015387,2]
[419060248,1774821048599,-2000.0,0.00015387,2]
[419060249,1774821048608,-2000.0,0.00015387,2]
[419060250,1774821048618,-2000.0,0.00015387,2]
[419060251,1774821048627,-1570.0,0.000154,2]
[419060252,1774821048637,-1000.0,0.00015403,2]
[419060253,1774821048646,-150.0,0.00015416,2]
[419060254,1774821048655,-150.0,0.00015422,2]
[419060255,1774821048665,-1000.0,0.00015431,2]
[419060256,1774821048674,-1000.0,0.00015438,2]
[419060257,1774821048683,-1000.0,0.0001545,2]
[419060258,1774821048693,-2000.0,0.00015453,2]
[419060259,1774821048703,-2000.0,0.00015453,2]
[419060260,1774821048712,-2000.0,0.00015453,2]
[419060261,1774821048722,-2000.0,0.00015453,2]
[419060262,1774821048731,-2000.0,0.00015453,2]
[419060263,1774821048741,-2000.0,0.00015453,2]
[419060264,1774821048750,-2000.0,0.00015453,2]
[419060265,1774821048760,-2000.0,0.00015453,2]
[419060266,1774821048769,-2000.0,0.00015453,2]
[419060267,1774821048778,-2000.0,0.00015453,2]
[419060268,1774821048787,-1000.0,0.00015455,2]
[419060269,1774821048796,-2000.0,0.00015462,2]
[419060270,1774821048806,-2000.0,0.00015462,2]
[419060271,1774821048815,-2000.0,0.00015462,2]
[419060272,1774821048824,-2000.0,0.00015462,2]
[419060273,1774821048834,-2000.0,0.00015462,2]
[419060274,1774821048843,-2000.0,0.00015462,2]
[419060275,1774821048853,-2000.0,0.00015462,2]
[419060276,1774821048862,-2000.0,0.00015462,2]
[419060277,1774821048872,-2000.0,0.00015462,2]
[419060278,1774821048881,-2000.0,0.00015462,2]
[419060279,1774821048891,-150.0,0.00015466,2]
[419060280,1774821048900,-194.72792766,0.00015467,2]
[419060281,1774821048909,-151.0,0.00015467,2]
[419060282,1774821048919,-773.2413689,0.00015467,2]
[419060283,1774821048928,-233.51889341,0.00015467,2]
[419060284,1774821048938,-233.51889341,0.00015467,2]
[419060285,1774821048947,-1592.87721993,0.00015467,2]
[419060286,1774821048956,-200.0,0.00015467,2]
[419060287,1774821048966,-233.51889341,0.00015467,2]
[419060288,1774821048975,-312.13772435,0.00015467,2]
[419060289,1774821048984,-829.12830338,0.00015467,2]
[419060290,1774821048993,-2129.0,0.00015475,2]
[419060291,1774821049002,-150.0,0.00015477,2]
[419060292,1774821049011,-151.0,0.00015478,2]
[419060293,1774821049021,-1000.0,0.00015479,2]
[419060294,1774821049030,-150.0,0.00015481,2]
[419060295,1774821049039,-1000.0,0.00015489,2]
[419060296,1774821049048,-150.0,0.00015492,2]
[419060297,1774821049057,-150.0,0.00015492,2]
[419060298,1774821049067,-1000.0,0.00015502,2]
[419060299,1774821049076,-718.0,0.00015511,2]
[419060300,1774821049085,-150.0,0.00015512,2]
[419060301,1774821049094,-1096.24809732,0.00015513,2]
[419060302,1774821049103,-1000.0,0.00015514,2]
[419060303,1774821049112,-150.0,0.00015521,2]
[419060304,1774821049121,-150.0,0.00015521,2]
[419060305,1774821049131,-240.0,0.00015533,2]
[419060306,1774821049140,-150.0,0.00015547,2]
[419060307,1774821049149,-229.84,0.00015551,2]
[419060308,1774821049158,-1000.0,0.0001556,2]
[419060309,1774821049167,-150.0,0.00015563,2]
[419060310,1774821049177,-824.92,0.00015574,30]
[419060311,1774821049186,-1000.0,0.00015578,2]
[419060312,1774821049195,-1000.0,0.00015578,2]
[419060313,1774821049204,-1000.0,0.00015581,2]
[419060314,1774821049214,-1000.0,0.00015585,2]
[419060315,1774821049223,-229.84,0.0001559,2]
[419060316,1774821049233,-150.0,0.000156,2]
[419060317,1774821049243,-150.0,0.00015603,2]
[419060318,1774821049252,-189.38,0.00015621,2]
[419060319,1774821049261,-229.84,0.00015629,2]
[419060320,1774821049270,-161.0,0.0001563,2]
[419060321,1774821049279,-3000.0,0.0001563,2]
[419060322,1774821049288,-3000.0,0.0001563,2]
[419060323,1774821049298,-1000.0,0.00015631,2]
[419060324,1774821049308,-150.0,0.0001564,2]
[419060325,1774821049317,-150.0,0.0001565,2]
[419060326,1774821049326,-150.0,0.00015657,2]
[419060327,1774821049337,-1000.0,0.00015668,2]
[419060328,1774821049346,-718.0,0.00015668,2]
[419060329,1774821049355,-150.0,0.00015669,2]
[419060330,1774821049365,-150.0,0.00015672,2]
[419060331,1774821049374,-150.0,0.00015676,2]
[419060332,1774821049384,-1000.0,0.00015688,2]
[419060333,1774821049393,-1000.0,0.00015697,2]
[419060334,1774821049403,-1000.0,0.00015698,2]
[419060335,1774821049414,-2149.0,0.000157,2]
[419060336,1774821049424,-150.0,0.00015707,2]
[419060337,1774821049434,-1000.0,0.00015719,2]
[419060338,1774821049443,-2825.0,0.0001572,2]
[419060339,1774821049453,-1000.0,0.00015747,2]
[419060340,1774821049462,-1000.0,0.00015748,2]
[419060341,1774821049472,-471.0,0.00015753,2]
[419060342,1774821049482,-3438.59,0.00015753,2]
[419060343,1774821049491,-1000.0,0.00015755,2]
[419060344,1774821049501,-1000.0,0.00015757,2]
[419060345,1774821049510,-718.0,0.00015759,2]
[419060346,1774821049520,-500.0,0.00015761,2]
[419060347,1774821049529,-1000.0,0.00015762,2]
[419060348,1774821049539,-200.0,0.00015763,2]
[419060349,1774821049549,-1000.0,0.00015769,2]
[419060350,1774821049558,-150.0,0.00015771,2]
[419060351,1774821049568,-1000.0,0.00015772,2]
[419060352,1774821049577,-150.0,0.00015777,2]
[419060353,1774821049586,-1000.0,0.00015778,2]
[419060354,1774821049596,-1000.0,0.00015781,2]
[419060355,1774821049606,-1000.0,0.00015781,2]
[419060356,1774821049616,-410.0,0.00015784,2]
[419060357,1774821049625,-1000.0,0.00015785,2]
[419060358,1774821049635,-629.043,0.00015789,2]
[419060359,1774821049644,-3518.0,0.00015789,2]
[419060360,1774821049654,-1050.151,0.00015789,2]
[419060361,1774821049664,-151.208,0.00015789,2]
[419060362,1774821049673,-1270.708,0.00015789,2]
[419060363,1774821049682,-415.0,0.00015789,2]
[419060364,1774821049691,-3765.0,0.00015789,2]
[419060365,1774821049700,-1000.0,0.0001579,2]
[419060366,1774821049838,-150.0,0.00015792,2]
[419060367,1774821049849,-1000.0,0.00015794,2]
[419060368,1774821049858,-1000.0,0.00015796,2]
[419060369,1774821049868,-1800.0,0.000158,5]
[419060370,1774821049877,-300.0,0.000158,5]
[419060371,1774821049887,-200.0,0.000158,5]
[419060372,1774821049897,-478.0,0.00015804,2]
[419060373,1774821049907,-1000.0,0.00015813,2]
[419060374,1774821049916,-200.0,0.00015817,2]
[419060375,1774821049926,-718.0,0.0001582,2]
[419060376,1774821049936,-350.0,0.00015826,2]
[419060377,1774821049945,-1000.0,0.00015826,2]
[419060378,1774821049954,-227.74950814,0.00015827,2]
[419060379,1774821049963,-200.0,0.00015833,2]
[419060380,1774821049973,-200.0,0.00015833,2]
[419060381,1774821049982,-58968.21824897,0.0001584,2]
[419060382,1774821049992,-8758.28038314,0.0001584,2]
[419060383,1774821050001,-2000.0,0.0001584,2]
[419060384,1774821050011,-2000.0,0.0001584,2]
[419060385,1774821050021,-683.0,0.00015849,2]
[419060386,1774821050031,-2000.0,0.0001585,2]
[419060387,1774821050040,-273.0,0.00015857,2]
[419060388,1774821050051,-1000.0,0.00015858,2]
[419060389,1774821050059,-718.0,0.00015869,2]
[419060390,1774821050069,-200.0,0.00015871,2]
[419060391,1774821050079,-1000.0,0.00015871,2]
[419060392,1774821050090,-192.492138,0.00015875,2]
[419060393,1774821050100,-1000.0,0.00015875,2]
[419060394,1774821050110,-150.0,0.0001588,2]
[419060395,1774821050120,-150.0,0.00015885,2]
[419060396,1774821050132,-1000.0,0.00015887,2]
[419060397,1774821050143,-2000.0,0.0001589,2]
[419060398,1774821050152,-2500.0,0.0001589,2]
[419060399,1774821050162,-2500.0,0.0001589,2]
[419060400,1774821050171,-1552.52786772,0.0001589,2]
[419060401,1774821050181,-1000.0,0.00015893,2]
[419060402,1774821050190,-1419.95984718,0.000159,2]
[419060403,1774821050199,-150.0,0.000159,2]
[419060404,1774821050209,-150.0,0.000159,2]
[419060405,1774821050218,-150.0,0.000159,2]
[419060406,1774821050227,-191.64658598,0.000159,2]
[419060407,1774821050237,-150.0,0.000159,2]
[419060408,1774821050248,-150.0,0.000159,2]
[419060409,1774821050258,-1800.0,0.000159,5]
[419060410,1774821050267,-150.0,0.000159,2]
[419060411,1774821050276,-9606.5105148,0.000159,2]
[419060412,1774821050288,-300.0,0.000159,5]
[419060413,1774821050298,-224.32485354,0.000159,2]
[419060414,1774821050308,-150.0,0.000159,2]
[419060415,1774821050318,-200.0,0.000159,5]
[419060416,1774821050328,-26971.09155416,0.000159,2]
[419060417,1774821050338,-150.0,0.00015915,2]
[419060418,1774821050348,-205.0,0.00015918,2]
[419060419,1774821050358,-1000.0,0.00015931,2]
[419060420,1774821050367,-1000.0,0.00015937,2]
[419060421,1774821050377,-1000.0,0.00015942,2]
[419060422,1774821050387,-227.70167578,0.00015947,2]
[419060423,1774821050399,-1570.0,0.0001595,2]
[419060424,1774821050408,-11993.98606279,0.00015956,2]
[419060425,1774821050419,-4018.3563956,0.00015956,2]
[419060426,1774821050430,-718.0,0.0001596,2]
[419060427,1774821050440,-3835.20744626,0.0001596,2]
[419060428,1774821050450,-150.0,0.00015965,2]
[419060429,1774821050460,-1000.0,0.00015968,2]
[419060430,1774821050470,-150.0,0.00015972,2]
[419060431,1774821050480,-156.0,0.00015973,2]
[419060432,1774821050490,-156.0,0.00015973,2]
[419060433,1774821050501,-1523.0,0.00015973,2]
[419060434,1774821050512,-156.0,0.00015973,2]
[419060435,1774821050522,-1523.0,0.00015973,2]
[419060436,1774821050532,-168.76883123,0.00015973,2]
[419060437,1774821050541,-161.0,0.00015973,2]
[419060438,1774821050551,-1523.0,0.00015973,2]
[419060439,1774821050561,-160.0,0.00015973,2]
[419060440,1774821050570,-161.0,0.00015973,2]
[419060441,1774821050580,-1523.0,0.00015973,2]
[419060442,1774821050589,-205.54151621,0.00015973,2]
[419060443,1774821050599,-1523.0,0.00015973,2]
[419060444,1774821050608,-1523.0,0.00015973,2]
[419060445,1774821050618,-1523.0,0.00015973,2]
[419060446,1774821050627,-1523.0,0.00015973,2]
[419060447,1774821050637,-1523.0,0.00015973,2]
[419060448,1774821050647,-1523.0,0.00015973,2]
[419060449,1774821050656,-1523.0,0.00015973,2]
[419060450,1774821050666,-1523.0,0.00015973,2]
[419060451,1774821050675,-1269.49993133,0.00015973,2]
[419060452,1774821050685,-153.0,0.00015973,2]
[419060453,1774821050695,-153.0,0.00015973,2]
[419060454,1774821050704,-242.8527761,0.00015973,2]
[419060455,1774821050714,-500.0,0.00015973,2]
[419060456,1774821050724,-1000.0,0.00015982,2]
[419060457,1774821050734,-186.122509,0.00015997,2]
[419060458,1774821050744,-151.0,0.00015997,2]
[419060459,1774821050754,-232.653136,0.00015997,2]
[419060460,1774821050763,-666.0,0.00015999,2]
[419060461,1774821050773,-666.0,0.00015999,2]
[419060462,1774821050783,-4230922.59707497,0.00016,2]
[419060463,1774821052697,-4570066.78481238,0.00016,2]
[419060464,1774821052708,-452.77341858,0.00016,2]
[419060465,1774821052863,-2530.1555267,0.000128,2]
[419060466,1774821052873,-60.81335419,0.00016,2]
[419060467,1774821052998,-617.68343768,0.00015789,2]
[419060468,1774821053113,-2336.42885582,0.00015789,2]
[419060469,1774821061439,300.0,9.506e-05,2]
[419060470,1774821061871,150.0,9.506e-05,2]
[419060471,1774821092086,4019.127,9.317e-05,2]
[419060472,1774821092266,301.012,9.317e-05,2]
[419060473,1774821103350,1323.17,9.304e-05,2]
[419060474,1774821103882,1410.47,9.416e-05,2]
[419060475,1774821122812,300.0,9.506e-05,2]
[419060476,1774821129350,151.0,9.504e-05,2]
[419060477,1774821129827,151.0,9.504e-05,2]
[419060478,1774821155342,629.01347651,9.506e-05,2]
[419060479,1774821155385,500.0,9.506e-05,2]
[419060480,1774821156166,500.0,9.506e-05,2]
[419060481,1774821156314,227.39064746,9.506e-05,2]
[419060482,1774821159367,37.82687603,9.506e-05,2]
[419060483,1774821170678,490.92,9.204e-05,2]
[419060484,1774821242106,1600.0,9.291e-05,2]
[419060485,1774821311842,157.0,9.291e-05,3]
[419060486,1774821313577,200.0,9.296e-05,2]
[419060487,1774821322819,151.72,7.437e-05,2]
[419060488,1774821470816,2500.0,9.407e-05,2]
[419060489,1774821633660,2500.0,9.407e-05,2]
[419060490,1774821659288,510.0,9.035e-05,2]
[419060491,1774821675147,500.0,8.93e-05,2]
[419060492,1774821692125,3215.301,9.317e-05,2]
[419060493,1774821692279,240.81,9.317e-05,2]
[419060497,1774821721917,778.14,8.829e-05,2]
[419060498,1774821795716,3371.2349,9.407e-05,2]
[419060499,1774821808218,2500.0,9.407e-05,2]
[419060500,1774821845577,7991.9,9.037e-05,2]
[419060501,1774821940299,-253.0,9.505e-05,2]
[419060502,1774821940324,-300.0,9.505e-05,2]
[419060503,1774821940351,-838.21683457,9.505e-05,2]
[419060504,1774821982338,2500.0,9.407e-05,2]
[419060505,1774822014120,10000.01,9.407e-05,2]
[419060506,1774822014150,10000.01,9.407e-05,2]
[419060507,1774822014181,10000.01,9.407e-05,2]
[419060508,1774822014213,10000.01,9.407e-05,2]
[419060509,1774822014253,10000.01,9.407e-05,2]
[419060510,1774822014284,10000.01,9.407e-05,2]
[419060511,1774822014313,10000.01,9.407e-05,2]
[419060512,1774822014340,10000.01,9.407e-05,2]
[419060513,1774822014368,10000.01,9.407e-05,2]
[419060514,1774822014396,10000.01,9.407e-05,2]
[419060515,1774822014422,2500.01,9.407e-05,2]
[419060516,1774822014448,5000.01,9.407e-05,2]
[419060517,1774822014474,5000.01,9.407e-05,2]
[419060518,1774822014499,5000.01,9.407e-05,2]
[419060519,1774822014525,5000.01,9.407e-05,2]
[419060520,1774822014550,5000.01,9.407e-05,2]
[419060521,1774822014576,5000.01,9.407e-05,2]
[419060522,1774822014602,5000.01,9.407e-05,2]
[419060523,1774822014629,5000.01,9.407e-05,2]
[419060524,1774822014655,5000.01,9.407e-05,2]
[419060525,1774822016978,-5094.79486952,9.407e-05,2]
[419060526,1774822017055,-10000.01,9.407e-05,2]
[419060527,1774822022225,-10000.01,9.407e-05,2]
[419060528,1774822022241,-10000.01,9.407e-05,2]
[419060529,1774822022257,-10000.01,9.407e-05,2]
[419060530,1774822022272,-10000.01,9.407e-05,2]
[419060531,1774822022288,-10000.01,9.407e-05,2]
[419060532,1774822022303,-10000.01,9.407e-05,2]
[419060533,1774822022318,-10000.01,9.407e-05,2]
[419060534,1774822022334,-10000.01,9.407e-05,2]
[419060535,1774822022385,-10000.01,9.407e-05,2]
[419060536,1774822022401,-10000.01,9.407e-05,2]
[419060537,1774822022461,-10000.01,9.407e-05,2]
[419060538,1774822022591,-10000.01,9.407e-05,2]
[419060539,1774822022741,-10000.01,9.407e-05,2]
[419060540,1774822022862,-10000.01,9.407e-05,2]
[419060541,1774822022955,-10000.01,9.407e-05,2]
[419060542,1774822027167,-4309.13253679,9.407e-05,2]
[419060543,1774822027217,-1381.74492642,9.407e-05,2]
[419060544,1774822027503,-4588.57201734,9.407e-05,2]
[419060545,1774822027529,-822.86596532,9.407e-05,2]
[419060546,1774822027642,-10000.01,9.407e-05,2]
[419060547,1774822027803,-10000.01,9.407e-05,2]
[419060548,1774822027989,-10000.01,9.407e-05,2]
[419060549,1774822028087,1135.34762363,7.945e-05,2]
[419060550,1774822028112,1135.34762363,7.945e-05,2]
[419060551,1774822028136,1135.34762363,7.945e-05,2]
[419060552,1774822028161,1135.34762363,7.945e-05,2]
[419060553,1774822028184,1135.34762363,7.945e-05,2]
[419060554,1774822028208,798.02495785,7.945e-05,2]
[419060555,1774822028252,-10000.01,9.407e-05,2]
[419060556,1774822028267,-10000.01,9.407e-05,2]
[419060557,1774822028356,-10000.01,9.407e-05,2]
[419060558,1774822028491,-10000.01,9.407e-05,2]
[419060559,1774822028776,-10000.01,9.407e-05,2]
[419060560,1774822028889,-10000.01,9.407e-05,2]